Cogmind - Beta 15 @@@ ROGUE MODE // 2025.08.29 @ 03:33:07 Player: shapeshifter Result: Destroyed by 8R-AWN with 8R-AWN's Boregun Performance ------------- Evolutions (0) 0 Regions Visited (3) 600 Robots Destroyed (27) 135 Value Destroyed (468) 468 Prototype IDs (23) 460 Alien Tech Used (0) 0 Bonus (300) 300 TOTAL SCORE: 1963 Bonus ------- Aligned with FarCom 300 Cogmind --------- Core Integrity 0/250 Matter 250/300 Energy 55/100 System Corruption 0% Temperature Cool (0) Movement Walking (330) Ox3 Location -10/Exiles Parts ------- > --- POWER (1) -------- (None) > --- PROPULSION (2) --- Potential Leg Potential Leg > --- UTILITY (2) ------ Humpback > --- WEAPON (2) ------- Longsword +1 Makeshift Spear > --- INVENTORY (35) --- Large Storage Unit High-capacity Storage Unit Light Humpback Humpback Humpback Humpback High-capacity Battery (250) Medium Matter Pod (100) High-capacity Matter Pod (200) High-capacity Matter Pod (200) High-capacity Matter Pod (170) Improved Terrain Scanner Core Shielding Core Shielding Light EM Pulse Cannon Light Assault Rifle Light Assault Rifle Light Assault Rifle Light Assault Rifle Plasma Cutter Deploy-a-Sentry Deploy-a-Sentry Peak State ------------ > --- POWER ------------ (None) > --- PROPULSION ------- Potential Leg Potential Leg > --- UTILITY ---------- Humpback > --- WEAPON ----------- Longsword +1 Makeshift Spear > --- INVENTORY -------- Large Storage Unit High-capacity Storage Unit Light Humpback Humpback Humpback Humpback High-capacity Battery Medium Matter Pod High-capacity Matter Pod High-capacity Matter Pod High-capacity Matter Pod Improved Terrain Scanner Core Shielding Core Shielding Light EM Pulse Cannon Light Assault Rifle Light Assault Rifle Light Assault Rifle Light Assault Rifle Plasma Cutter Deploy-a-Sentry Deploy-a-Sentry [Rating: 38] Favorites ----------- Power Light Ion Engine Engine Light Ion Engine Propulsion Light Treads Treads Light Treads Leg Potential Leg Wheel Compact Wheel Utility Core Shielding Device Seismic Detector Storage Large Storage Unit Protection Core Shielding Weapon Light Assault Rifle Energy Gun Small Laser Energy Cannon Light EM Pulse Cannon Ballistic Gun Light Assault Rifle Slashing Weapon Longsword +1 Piercing Weapon Makeshift Spear Build | -11 -10 -10 -10 ------- Run | Yrd Mat Min Exi Slots Evolved . | . . . . Power . | . . . . Propulsion . | . . . . Utility . | . . . . Weapon . | . . . . Parts Attached 30 | 9 9 5 7 Power 6 | 1 3 1 1 Engine 6 | 1 3 1 1 Core . | . . . . Reactor . | . . . . Propulsion 8 | 4 2 . 2 Treads 4 | 2 2 . . Leg 2 | . . . 2 Wheel 2 | 2 . . . Hover . | . . . . Flight . | . . . . Utility 5 | 2 2 . 1 Device 1 | 1 . . . Storage 3 | 1 1 . 1 Processor . | . . . . Hackware . | . . . . Protection 1 | . 1 . . Artifact . | . . . . Weapon 11 | 2 2 4 3 Energy Gun 1 | 1 . . . Energy Cannon 3 | . 2 . 1 Ballistic Gun 5 | 1 . 4 . Ballistic Cannon . | . . . . Launcher . | . . . . Special Weapon . | . . . . Impact Weapon . | . . . . Slashing Weapon 1 | . . . 1 Piercing Weapon 1 | . . . 1 Special Melee Weapon . | . . . . Unidentified Prototypes . | . . . . Parts Lost 10 | . 2 2 6 Power 2 | . . . 2 Propulsion 4 | . . 1 3 Utility 1 | . 1 . . Weapon 3 | . 1 1 1 Highest Loss Streak 4 | . 1 2 4 To Critical Strikes 2 | . . . 2 Average Backups 13 | 2 7 13 20 Power 1 | . 1 1 1 Propulsion 2 | 1 2 2 2 Utility 5 | . 2 4 9 Weapon 3 | . . 5 5 Tool/Special . | . . . . Unused Backups 24 | . 3 3 18 Power 3 | . . . 3 Propulsion . | . . . . Utility 15 | . . 2 13 Weapon 2 | . . 1 1 Tool/Special 4 | . 3 . 1 Average Slot Usage (%) 91 | . 95 95 85 Engine 13 | . 14 14 13 Treads 17 | . 28 25 2 Wheel 8 | . . . 23 Device 2 | . 5 . . Storage 14 | . 14 14 14 Protection 7 | . 8 14 3 Energy Gun 4 | . 10 . . Energy Cannon 3 | . 6 . 1 Ballistic Gun 17 | . 6 26 25 Peak Build Rating 38 | 7 11 11 38 Average Rating 10 | 3 7 8 13 On Entrance 6 | . 7 11 8 Naked Turns . | . . . . Heaviest Build 208 | 12 34 29 208 Greatest Support 40 | 40 40 40 26 Greatest Overweight (x) 12 | . . 1 12 Average Overweight (x) 2 | . . . 5 Largest Inventory Capacity 35 | 8 15 15 35 Average Capacity 19 | 7 11 15 30 Most Carried 35 | 5 15 15 35 Average Carried 14 | 2 7 13 24 Final Capacity 35 | 8 15 15 35 Final Carried 26 | 3 13 12 26 Class Distribution -------------------- 71% | Mutant 28% | Hauler-Mutant Dominant Class ---------------- Mutant | -10/Materials Mutant | -10/Mines Hauler-Mutant | -10/Exiles Resources | -11 -10 -10 -10 ----------- Run | Yrd Mat Min Exi Matter Collected 858 | 256 241 241 120 Remotely . | . . . . Salvage Created 839 | 25 601 169 44 Parts 54 | 4 32 18 . Haulers Intercepted 2 | . 2 . . Recyclers Shooed 2 | . 2 . . Parts Field Recycled . | . . . . Retrieved Matter . | . . . . Parts Self-Destructed . | . . . . Prevented . | . . . . Kills | -11 -10 -10 -10 ------- Run | Yrd Mat Min Exi Combat Hostiles Destroyed 24 | . 10 11 3 Melee 2 | . 2 . . Guns 15 | . 6 9 . Cannons 6 | . 1 2 3 AOE 1 | . 1 . . Classes Destroyed 7 | 1 5 1 . Tunneler 1 | 1 . . . Hauler 2 | . 2 . . Recycler 2 | . 2 . . Watcher 3 | . 3 . . Swarmer 12 | . 3 9 . Grunt 7 | . 7 . . Assembled 5 | . . 2 3 Best Kill Streak 3 | 1 3 3 3 Combat Bots Only 3 | . 3 3 3 Max Kills in Single Turn 2 | 1 2 1 1 Gunslinging . | . . . . Exploded 1 | . 1 . . Melee 1 | . 1 . . Uniques/NPCs Destroyed . | . . . . Combat | -11 -10 -10 -10 -------- Run | Yrd Mat Min Exi Hostile Shots Fired 186 | . 76 55 55 Missed 39 | . 19 10 10 Hits 147 | . 57 45 45 Melee 6 | . . 6 . Projectile 141 | . 57 39 45 Critical Strikes 16 | . 1 1 14 Damage Taken 1908 | . 676 526 706 Core 262 | . 59 92 111 Absorbed by Shields . | . . . . Redirected to Shielding 27 | . 9 18 . Core Remaining (%) 100 | 100 . . . Volleys Fired 93 | 7 47 30 9 Largest 2 | 1 2 2 1 Hottest 112 | 20 112 112 56 Shots Fired 158 | 7 83 59 9 Gun 133 | 7 75 51 . Cannon 25 | . 8 8 9 Launcher . | . . . . Special . | . . . . Kinetic 90 | 7 32 51 . Thermal 43 | . 43 . . Explosive . | . . . . Electromagnetic 25 | . 8 8 9 Robot Hit Streak 11 | 2 11 7 3 Robot Miss Streak 3 | 1 3 3 3 Penetration Max . | . . . . Secondary Targets 2 | . 1 1 . Max Gunslinging Chain 1 | . 1 1 . Shots Hit Robots 115 | 5 58 31 21 Core Hits 49 | 1 27 15 6 Critical Kills . | . . . . Critical Parts Destroyed 1 | . 1 . . Critical Strikes 2 | . 1 . 1 Destroy 1 | . 1 . . Sever 1 | . . . 1 Melee Attacks 17 | . . . 17 Impact . | . . . . Slashing 13 | . . . 13 Piercing 4 | . . . 4 Sneak Attacks . | . . . . Combat Hostiles . | . . . . Follow-up Attacks 4 | . . . 4 Damage Inflicted 2023 | 64 873 352 734 Guns 997 | 64 659 274 . Cannons 245 | . 89 78 78 Explosions 104 | . 104 . . Melee 656 | . . . 656 Ramming 21 | . 21 . . Kinetic 683 | 64 345 274 . Thermal 418 | . 418 . . Explosive . | . . . . Electromagnetic 245 | . 89 78 78 Impact . | . . . . Slashing 544 | . . . 544 Piercing 112 | . . . 112 Highest Corruption . | . . . . Average Corruption . | . . . . Corruption Purged . | . . . . Corruption Blocked . | . . . . Overload Shots . | . . . . Overflow Damage . | . . . . Projectiles . | . . . . Explosions . | . . . . Melee . | . . . . Knockbacks . | . . . . Impact . | . . . . Kinetic . | . . . . Secondary . | . . . . Self-Inflicted Damage 47 | . 47 . . Shots 1 | . 1 . . Rammed 8 | . 8 . . Targets Rammed 10 | . 10 . . Kicked . | . . . . Crushed 2 | . 2 . . Highest Temperature 204 | . 131 204 48 Average Temperature 55 | . 53 90 18 Received Heat Transfer 294 | . 234 60 . Siege Activations . | . . . . Martial Activations . | . . . . Shielding Activations . | . . . . Robots Disrupted . | . . . . Combat Hostiles . | . . . . Robots Corrupted . | . . . . Combat Hostiles . | . . . . Parts Fried . | . . . . Impact Corruptions . | . . . . Robots Melted . | . . . . Combat Hostiles . | . . . . Parts Melted . | . . . . Heat Transferred 775 | . 775 . . Parts Sabotaged . | . . . . Parts Stolen . | . . . . Parts Stripped . | . . . . Power Chain Reactions 1 | . 1 . . Alert | -11 -10 -10 -10 ------- Run | Yrd Mat Min Exi Maximum Alert Level . | . . . . Low Security (%) 100 | 100 100 100 . Level 1 . | . . . . Level 2 . | . . . . Level 3 . | . . . . Level 4 . | . . . . Level 5 . | . . . . High Security . | . . . . Max Security . | . . . . Peak Influence 104 | . 70 104 . Initial 19 | . . 19 . Average 20 | . 14 37 . Influence Increases 585 | 5 365 215 . Destroy 0b10 Robot/C 380 | . 200 180 . Destroy 0b10 Robot/NC 40 | 5 35 . . Destroy Leader 80 | . 50 30 . Successful Hack 16 | . 11 5 . Destroy Structure 9 | . 9 . . Lose Combat Pursuer 60 | . 60 . . Influence Decreases 585 | 5 315 265 . Entered New Map 31 | . . 31 . Time Decay 522 | 5 303 214 . Lost Part 32 | . 12 20 . Squads Dispatched . | . . . . Investigation . | . . . . Extermination . | . . . . Reinforcement . | . . . . Assault . | . . . . Garrison . | . . . . Intercept . | . . . . Searches Triggered . | . . . . Construction Impeded . | . . . . Haulers Reinforced . | . . . . Active Scanning Responses . | . . . . Cargo Convoy Interrupts . | . . . . Stealth | -11 -10 -10 -10 --------- Run | Yrd Mat Min Exi Distress Signals 3 | . 1 2 . Communications Jammed . | . . . . Distress Signals . | . . . . Times Spotted 38 | . 16 15 7 Peak Tracking Total 9 | . 3 3 9 Tactical Retreats 6 | . 3 3 . Traps | -11 -10 -10 -10 ------- Run | Yrd Mat Min Exi Traps Triggered 1 | . 1 . . Indirectly . | . . . . Trap Hack Attempts . | . . . . Triggered . | . . . . Disarmed . | . . . . Reprogrammed . | . . . . Reused . | . . . . Traps Extracted . | . . . . Installed . | . . . . Triggered . | . . . . Machines | -11 -10 -10 -10 ---------- Run | Yrd Mat Min Exi Machines Disabled 1 | . . . 1 Max in Single Turn 1 | . . . 1 Machines Repaired . | . . . . Machines Dismantled . | . . . . Machines Sabotaged . | . . . . Overloaded Fab Kills . | . . . . Hacking | -11 -10 -10 -10 --------- Run | Yrd Mat Min Exi Machines Accessed 9 | . 6 1 2 Terminals 7 | . 6 1 . Fabricators . | . . . . Repair Stations . | . . . . Recycling Units . | . . . . Scanalyzers . | . . . . Garrison Access . | . . . . Total Hacks 16 | . 12 2 2 Successful 9 | . 6 1 2 Failed 7 | . 6 1 . Catastrophic 1 | . 1 . . Database Lockouts . | . . . . Manual 14 | . 11 2 1 Terminals 14 | . 12 2 . Fabricators . | . . . . Repair Stations . | . . . . Recycling Units . | . . . . Scanalyzers . | . . . . Garrison Access . | . . . . Terminal Hacks 2 | . . . 2 Record 1 | . . . 1 Proto ID Catalog 1 | . . . 1 Fabricator Hacks . | . . . . Repair Station Hacks . | . . . . Recycling Unit Hacks . | . . . . Scanalyzer . | . . . . Garrison Access Hacks . | . . . . Unauthorized Hacks 7 | . 6 1 . Terminals 7 | . 6 1 . Botnet 7 | . 6 1 . Fabricators . | . . . . Repair Stations . | . . . . Recycling Units . | . . . . Scanalyzers . | . . . . Garrison Access . | . . . . Data Cores Recovered . | . . . . Used . | . . . . Hacking Detections 7 | . 6 1 . Full Trace Events . | . . . . Feedback Events . | . . . . Feedback Blocked . | . . . . Robot Schematics Acquired . | . . . . Robots Built . | . . . . Authchips . | . . . . Time . | . . . . Total Robot Build Rating . | . . . . Part Schematics Acquired . | . . . . Parts Built . | . . . . Authchips . | . . . . Time . | . . . . Total Part Build Rating . | . . . . Parts Repaired . | . . . . Time . | . . . . Parts Recycled . | . . . . Recycled Matter . | . . . . Retrieved Matter . | . . . . Retrieved Components . | . . . . Parts Scanalyzed . | . . . . Part Schematics Acquired . | . . . . Parts Damaged . | . . . . Bothacking | -11 -10 -10 -10 ------------ Run | Yrd Mat Min Exi Used RIF Installer . | . . . . Robots Hacked . | . . . . Non-combat . | . . . . Combat . | . . . . Robot Hacks Applied . | . . . . Relay Couplers Released . | . . . . Fabnet Peak Effective % . | . . . . Robots Rewired . | . . . . Allies Hacked . | . . . . Hacks Repelled . | . . . . Allies | -11 -10 -10 -10 -------- Run | Yrd Mat Min Exi Total Allies . | . . . . Largest Group . | . . . . Highest-Rated Group . | . . . . Highest-Rated Ally . | . . . . Total Orders . | . . . . Ally Attacks 4 | . . . 4 Total Damage 213 | . . . 213 Kills . | . . . . Allies Corrupted . | . . . . Allies Melted . | . . . . Turrets Deployed 1 | . . . 1 Intel | -11 -10 -10 -10 ------- Run | Yrd Mat Min Exi Active Infowar (turns) 619 | 5 614 . . Seismic 619 | 5 614 . . Robot Analysis Total . | . . . . Derelict Logs Recovered 2 | . . 2 . Drone Launches . | . . . . Drone Recoveries . | . . . . Exploration | -11 -10 -10 -10 ------------- Run | Yrd Mat Min Exi Turns Passed 3546 | 93 1525 629 1299 Spaces Moved 1694 | 52 705 304 633 Core 19 | 19 . . . Treads 1119 | 31 705 304 79 Legs . | . . . . Wheels 556 | 2 . . 554 Hover . | . . . . Flight . | . . . . Fastest Speed 50 | 50 160 160 90 Average Speed 171 | 117 160 175 186 Slowest Speed 280 | 160 160 240 280 Overloaded Moves . | . . . . Propulsion Burnouts . | . . . . Robots Hopped . | . . . . Potential Cave-ins . | . . . . Cave-ins Triggered . | . . . . Exploration Rate (%) 57 | 4 96 62 68 Regions Visited 3 Branch Regions 2 Pre-discovered Areas 1 | . . . 1 Known Exits Taken . | . . . . Unknown Exits Taken 3 | 1 1 1 . Scrap Searched 1 | . . 1 . Spaces Dug . | . . . . Terrain Destroyed 10 | . 10 . . Melee . | . . . . Projectile . | . . . . AOE 10 | . 10 . . Terrain Rammed . | . . . . Walls Destroyed . | . . . . Machines Disabled . | . . . . Actions | -11 -10 -10 -10 --------- Run | Yrd Mat Min Exi Total 2174 | 76 1015 350 733 Wait 241 | . 213 1 27 Move 1691 | 51 704 303 633 Hop . | . . . . Pick Up 67 | 9 21 5 32 Fast Attach 2 | 1 1 . . Attach 17 | 6 3 1 7 Detach . | . . . . Swap 16 | 2 6 4 4 Drop 24 | . 10 6 8 Fire 93 | 7 47 30 9 Melee 13 | . . . 13 Ram . | . . . . Kick . | . . . . Crush 10 | . 10 . . Escape Stasis . | . . . . Rewire . | . . . . Trap . | . . . . Miscellaneous . | . . . . Route ------- -11/Scrapyard -10/Materials (discovered 5 exits: [*Mat x3] / *Min / [*Sub]) -10/Mines -10/Exiles History --------- Turn | Location | Event 57 | -11/Scrapyard | Discovered new exit (range 13) 94 | -11/Scrapyard | Entered Materials 314 | -10/Materials | Build established: Mutant 613 | -10/Materials | Discovered new exit (range 9) 644 | -10/Materials | Discovered new exit (range 9) 1236 | -10/Materials | Discovered new exit (range 13) 1357 | -10/Materials | Discovered new exit (range 3) 1558 | -10/Materials | Discovered new exit (range 13) 1619 | -10/Materials | Entered Mines 1620 | -10/Mines | Assembled infested the area 1628 | -10/Mines | Met a Derelict bent on vengeance 1688 | -10/Mines | Learned Materials non-interactive machine intel 1696 | -10/Mines | Learned Materials stockpile data 1833 | -10/Mines | Found a hidden stash of uninstalled traps 1933 | -10/Mines | A weapon hastily lodged in a ceiling crevice suddenly fell to the ground 2101 | -10/Mines | Core integrity fell below 50% 2236 | -10/Mines | Deemed a non-threat by the Exiles lab entrance 2236 | -10/Mines | Discovered new exit (range 5) 2248 | -10/Mines | Entered Exiles 2308 | -10/Exiles | Met 8R-AWN 2347 | -10/Exiles | Met EX-HEX 2453 | -10/Exiles | Met EX-DEC 2468 | -10/Exiles | Learned location of Zion (-7) 2483 | -10/Exiles | Met EX-BIN 2496 | -10/Exiles | Aligned with FarCom system 2497 | -10/Exiles | Given EX-Vault access code 2517 | -10/Exiles | Opened EX-Vault 2526 | -10/Exiles | Found Longsword +1 2529 | -10/Exiles | Found Potential Leg 2532 | -10/Exiles | Found Potential Leg 2573 | -10/Exiles | Found Deploy-a-Sentry 2576 | -10/Exiles | Found Deploy-a-Sentry 2579 | -10/Exiles | Found Deploy-a-Sentry 2619 | -10/Exiles | Warned to stay clear of 0b10 Research branches 2836 | -10/Exiles | Build established: Hauler-Mutant 3407 | -10/Exiles | Attacked by the Exiles 3479 | -10/Exiles | DAS Turret deployed 3530 | -10/Exiles | Core integrity fell below 20% 3547 | -10/Exiles | Destroyed by 8R-AWN with 8R-AWN's Boregun Last Messages --------------- 03532_ HV Slug penetrates Earth. 03534_ Mak. Spear follow-up attack on 8R-AWN. 03534_ Penetrated by HV Slug. 03534_ Critical hit (Destroy). 03534_ Lgt. Treads destroyed. 03534_ HV Slug penetrates Earth. 03534_ Penetrated by HV Slug. 03534_ HV Slug penetrates Earth. 03536_ Penetrated by HV Slug. 03536_ Com. Wheel destroyed. 03536_ HV Slug penetrates Earth. 03536_ Penetrated by HV Slug. 03536_ HV Slug penetrates Earth. 03538_ Penetrated by HV Slug. 03538_ HV Slug penetrates Earth. 03538_ Penetrated by HV Slug. 03538_ HV Slug penetrates Earth. 03541_ Penetrated by HV Slug. 03542_ Mak. Spear follow-up attack on 8R-AWN. 03543_ Penetrated by HV Slug. Map ----- +----------------------------------------------------+ | ?????????????????????????????????????????????????? | | ?????????????????????????????????????????????????? | | ?????????????????????????????????????????????????? | | ?????????????????????????????????????????????????? | | ?????????????????????????????????????????????????? | | ?????????????????????????????????????????????????? | | ?????????????????????????????????????????????????? | | ?????????????????????????????????????????????????? | | ?????????????????????????????????????????????????? | | ?????????????????????????????????????????????????? | | ?????????????????????????????????????????????????? | | ?????????????????????????????????????????????????? | | ??????????? ???????????????????????????????????? | | ??????????? ??????????????????????????????????? | | ??????????# ?????????????#######?????????????? | | ??????????# ######???????#! ! "#?????????????? | | ??????????# #""##?????# "#?????????????? | | ???????????? #?????# "#?????????????? | | ????????????#" ##???## ""#????????????## | | ????????????"" #####" ""#???????????? | | ??????????????# ##" ""#????????????" | | ???????????????# #"" ###???????????"" | | ??????????????????# #????????????#"" | | ?????????????????????# ##???????????#"" | | ????????????????##???### g "#???????????? | | ???????????????##""#### %@ ###???????????" | | ???????????????# ! = %;#?????????# | | ???????????????# "### ;;;"#???### | | ???????????????# "#?## % #####X# | | ???????????????# ##??#" % % | | ???????????????# !""" ""#;#???#"# | | ???????????????########## #???#### %% | | ????????????????????????# #??????### ! | | ????????????????????????# #????????### % | | ????????????????????????# #??????????## | | ????????????????????????? ????????????## | | ????????????????????????? ?????????????##" | | ????????????????????????? ??????????????#""" | | ????????????????????????? ?????????????##" | | ????????????????????????? ?????????????#"" | | ????????????????????????? ?????????????#""" | | ??????????????????????????????????????#""" | | ??????????????????????????????????????#""" | | ??????????????????????????????????????#"" | | ??????????????????????????????????????#""" | | ??????????????????????????????????????#"" | | ???????????????????????????????????????#"" | | ???????????????????????????????????????#"""" | | ????????????????????????????????????????# | | ????????????????????????????????????????#" | +----------------------------------------------------+ Best States ------------- Heat Dissipation 25 Energy Generation 10 Energy Capacity 250 Matter Stores 300 Matter Capacity 300 Sight Range 16 Terrain Scan Density 10 Core Shielding 20 Evasion (%) 50 Recoil Reduction 2 Item Schematics ----------------- None Robot Schematics ------------------ None Fabricated ------------ Nothing Repaired ---------- Nothing Alien Tech Used ----------------- None Achievements -------------- None Challenges ------------ None Game ------ Seed ColdReactionGravjet Manual? 0 Play Time 00:19:38 Cumulative 220.9 hours Start 2025.08.29 @ 03:16:09 End 2025.08.29 @ 03:33:07 Sessions 1 Manual Loads 0 Difficulty Rogue Special Mode None Game No. 328 Rogue 328 Adventurer 0 Explorer 0 Win Type - Total 4 Types 3/0/1/0/0/0/0/0/0/0 Lore% 80 Gallery% 76 Achievement% 57 Wizard Run 0 Options --------- Layout 1 ASCII 0 Keyboard 0 Movement Mouse Keybinds 0 Fullscreen 1 Font 32/SmallcapsGlow Map View 50x35 Zoom Use 0% Tactical HUD 1 Map Filters NONE Filters NONE Steam 1 RUN: 1452e84e-b990-4f7e-a493-d6e17b658cb8